lending/lending_fUSD_20250917
["ID","MTS","AMOUNT","RATE_DAILY","PERIOD"]
[385900541,1758119432836,-151.0,0.00024885,2]
[385900543,1758119432845,-151.0,0.00024885,2]
[385900545,1758119432855,-151.0,0.00024885,2]
[385900546,1758119432863,-151.0,0.00024885,2]
[385900547,1758119432872,-151.0,0.00024885,2]
[385900548,1758119432881,-151.0,0.00024885,2]
[385900549,1758119432891,-151.0,0.00024885,2]
[385900550,1758119432900,-151.0,0.00024885,2]
[385900551,1758119432909,-151.0,0.00024885,2]
[385900552,1758119432918,-151.0,0.00024885,2]
[385900553,1758119432928,-151.0,0.00024885,2]
[385900554,1758119432937,-151.0,0.00024885,2]
[385900555,1758119432949,-151.0,0.00024885,2]
[385900556,1758119432958,-151.0,0.00024885,2]
[385900557,1758119432968,-151.0,0.00024885,2]
[385900559,1758119432978,-151.0,0.00024885,2]
[385900560,1758119432987,-221.98529903,0.00024885,2]
[385900562,1758119432996,-151.0,0.00024885,2]
[385900564,1758119433006,-151.0,0.00024885,2]
[385900566,1758119433015,-151.0,0.00024885,2]
[385900568,1758119433025,-151.0,0.00024885,2]
[385900570,1758119433034,-151.0,0.00024885,2]
[385900572,1758119433043,-151.0,0.00024885,2]
[385900573,1758119433053,-151.0,0.00024885,2]
[385900574,1758119433063,-151.0,0.00024885,2]
[385900575,1758119433072,-151.0,0.00024885,2]
[385900576,1758119433081,-500.0,0.00024885,2]
[385900577,1758119433091,-151.0,0.00024885,2]
[385900578,1758119433100,-500.0,0.00024885,2]
[385900579,1758119433110,-151.0,0.00024885,2]
[385900580,1758119433119,-151.0,0.00024885,2]
[385900581,1758119433129,-500.0,0.00024885,2]
[385900582,1758119433138,-151.0,0.00024885,2]
[385900584,1758119433148,-500.0,0.00024885,2]
[385900586,1758119433157,-500.0,0.00024885,2]
[385900588,1758119433166,-500.0,0.00024885,2]
[385900590,1758119433176,-500.0,0.00024885,2]
[385900592,1758119433186,-2903.49991819,0.0002489,2]
[385900594,1758119433199,-18703.64671107,0.000249,2]
[385900596,1758119433209,-391.86758137,0.00024928,2]
[385900598,1758119433219,-428.19967501,0.00025039,2]
[385900600,1758119433229,-150.0,0.00025039,2]
[385900601,1758119433239,-500.0,0.00025039,2]
[385900602,1758119433249,-482.0,0.00025039,2]
[385900603,1758119433258,-150.0,0.00025039,2]
[385900604,1758119433268,-150.0,0.00025039,2]
[385900605,1758119433278,-150.0,0.00025039,2]
[385900606,1758119433287,-150.49387386,0.00025039,2]
[385900607,1758119433296,-150.0,0.00025039,2]
[385900608,1758119433306,-500.0,0.00025039,2]
[385900609,1758119433315,-500.0,0.00025039,2]
[385900610,1758119433324,-500.0,0.00025039,2]
[385900611,1758119433333,-500.0,0.00025039,2]
[385900612,1758119433343,-150.0,0.00025039,2]
[385900613,1758119433352,-150.0,0.00025039,2]
[385900614,1758119433362,-500.0,0.00025039,2]
[385900615,1758119433371,-500.0,0.00025039,2]
[385900616,1758119433380,-150.0,0.00025039,2]
[385900617,1758119433390,-500.0,0.00025039,2]
[385900618,1758119433400,-150.0,0.00025039,2]
[385900619,1758119433410,-151.46286738,0.00025039,2]
[385900620,1758119433418,-500.0,0.00025039,2]
[385900621,1758119433427,-150.0,0.00025039,2]
[385900622,1758119433437,-150.0,0.00025039,2]
[385900623,1758119433449,-633.0,0.00025039,2]
[385900624,1758119433459,-633.0,0.00025039,2]
[385900625,1758119433473,-500.0,0.00025039,2]
[385900626,1758119433483,-500.0,0.00025039,2]
[385900627,1758119433493,-150.0,0.00025039,2]
[385900628,1758119433502,-500.0,0.00025039,2]
[385900629,1758119433514,-500.0,0.00025039,2]
[385900630,1758119433524,-150.0,0.00025039,2]
[385900631,1758119433533,-500.0,0.00025039,2]
[385900632,1758119433543,-150.0,0.00025039,2]
[385900633,1758119433554,-500.0,0.00025039,2]
[385900634,1758119433564,-150.0,0.00025039,2]
[385900635,1758119433573,-500.0,0.00025039,2]
[385900636,1758119433583,-180.0,0.00025053,7]
[385900637,1758119433593,-394.0,0.000251,2]
[385900638,1758119433603,-464.53176865,0.00025149,2]
[385900639,1758119433613,-322.6107,0.00025198,2]
[385900640,1758119433622,-184.01685965,0.00025198,2]
[385900641,1758119433635,-64.69845856,0.00025198,2]
[385900642,1758119433645,-500.86386229,0.0002526,2]
[385900643,1758119433655,-150.0,0.00025313,2]
[385900644,1758119433666,-500.0,0.00025313,2]
[385900645,1758119433675,-482.0,0.00025313,2]
[385900646,1758119433686,-150.0,0.00025313,2]
[385900647,1758119433698,-150.0,0.00025313,2]
[385900648,1758119433708,-152.17169623,0.00025313,2]
[385900649,1758119433717,-150.0,0.00025313,2]
[385900650,1758119433727,-500.0,0.00025313,2]
[385900651,1758119433736,-500.0,0.00025313,2]
[385900652,1758119433746,-500.0,0.00025313,2]
[385900653,1758119433757,-500.0,0.00025313,2]
[385900654,1758119433767,-150.0,0.00025313,2]
[385900655,1758119433776,-500.0,0.00025313,2]
[385900656,1758119433785,-500.0,0.00025313,2]
[385900657,1758119433795,-155.24857898,0.00025313,2]
[385900658,1758119433805,-500.0,0.00025313,2]
[385900659,1758119433814,-150.0,0.00025313,2]
[385900660,1758119433824,-500.0,0.00025313,2]
[385900661,1758119433833,-500.0,0.00025313,2]
[385900662,1758119433843,-150.0,0.00025313,2]
[385900663,1758119433852,-633.0,0.00025313,2]
[385900664,1758119433862,-633.0,0.00025313,2]
[385900665,1758119433872,-500.0,0.00025313,2]
[385900666,1758119433882,-500.0,0.00025313,2]
[385900667,1758119433891,-150.0,0.00025313,2]
[385900668,1758119433900,-500.0,0.00025313,2]
[385900669,1758119433910,-500.0,0.00025313,2]
[385900670,1758119433920,-500.0,0.00025313,2]
[385900671,1758119433930,-150.0,0.00025313,2]
[385900672,1758119433939,-500.0,0.00025313,2]
[385900673,1758119433952,-500.0,0.00025313,2]
[385900674,1758119433962,-537.19595592,0.0002537,2]
[385900675,1758119433972,-150.75,0.00025399,2]
[385900676,1758119433981,-576.41,0.00025399,2]
[385900677,1758119433991,-500.0,0.00025402,2]
[385900678,1758119434001,-804.63,0.00025441,2]
[385900679,1758119434011,-804.63,0.00025441,2]
[385900680,1758119434022,-573.52804956,0.00025481,2]
[385900681,1758119434032,-804.63,0.00025541,2]
[385900682,1758119434043,-150.0,0.00025587,2]
[385900683,1758119434052,-500.0,0.00025587,2]
[385900684,1758119434063,-482.0,0.00025587,2]
[385900685,1758119434073,-150.0,0.00025587,2]
[385900686,1758119434083,-150.0,0.00025587,2]
[385900687,1758119434092,-453.27485573,0.00025587,2]
[385900688,1758119434102,-500.0,0.00025587,2]
[385900689,1758119434112,-500.0,0.00025587,2]
[385900690,1758119434123,-606.92537491,0.00025587,2]
[385900691,1758119434134,-150.0,0.00025587,2]
[385900692,1758119434144,-500.0,0.00025587,2]
[385900693,1758119434154,-500.0,0.00025587,2]
[385900694,1758119434164,-500.0,0.00025587,2]
[385900695,1758119434174,-150.0,0.00025587,2]
[385900696,1758119434184,-500.0,0.00025587,2]
[385900697,1758119434197,-500.0,0.00025587,2]
[385900698,1758119434207,-633.0,0.00025587,2]
[385900699,1758119434217,-633.0,0.00025587,2]
[385900700,1758119434227,-304.63091415,0.00025587,2]
[385900701,1758119434237,-500.0,0.00025587,2]
[385900702,1758119434248,-212.11727887,0.00025587,2]
[385900703,1758119434259,-260.73658062,0.00025587,2]
[385900704,1758119434268,-500.0,0.00025587,2]
[385900705,1758119434279,-500.0,0.00025587,2]
[385900706,1758119434289,-150.0,0.00025587,2]
[385900707,1758119434299,-500.0,0.00025587,2]
[385900708,1758119434309,-500.0,0.00025587,2]
[385900709,1758119434319,-609.8601432,0.00025591,2]
[385900710,1758119434329,-180.0,0.00025606,2]
[385900711,1758119434339,-168.0,0.00025609,2]
[385900712,1758119434349,-316.0,0.0002563,2]
[385900713,1758119434359,-500.0,0.00025676,2]
[385900714,1758119434369,-472.26,0.00025699,2]
[385900715,1758119434379,-472.26,0.00025699,2]
[385900716,1758119434389,-472.26,0.00025699,2]
[385900717,1758119434399,-472.26,0.00025699,2]
[385900718,1758119434409,-942.8,0.00025699,2]
[385900719,1758119434420,-472.26,0.00025699,2]
[385900720,1758119434430,-472.26,0.00025699,2]
[385900721,1758119434440,-1100.0,0.000257,9]
[385900722,1758119434451,-646.19223684,0.00025702,2]
[385900723,1758119434461,-180.0,0.00025737,2]
[385900724,1758119434475,-500.0,0.00025753,2]
[385900725,1758119434486,-180.0,0.00025756,7]
[385900726,1758119434496,-261.34,0.00025776,2]
[385900727,1758119434506,-180.0,0.00025797,2]
[385900728,1758119434517,-2200.0,0.000258,9]
[385900729,1758119434527,-682.52433047,0.00025812,2]
[385900730,1758119434537,-220.21587881,0.00025861,2]
[385900731,1758119434547,-500.0,0.00025861,2]
[385900732,1758119434557,-482.0,0.00025861,2]
[385900733,1758119434569,-201.62636326,0.00025861,2]
[385900734,1758119434579,-500.0,0.00025861,2]
[385900735,1758119434589,-500.0,0.00025861,2]
[385900736,1758119434599,-150.0,0.00025861,2]
[385900737,1758119434608,-500.0,0.00025861,2]
[385900738,1758119434618,-500.0,0.00025861,2]
[385900739,1758119434628,-500.0,0.00025861,2]
[385900740,1758119434637,-150.0,0.00025861,2]
[385900741,1758119434647,-500.0,0.00025861,2]
[385900742,1758119434657,-500.0,0.00025861,2]
[385900743,1758119434667,-633.0,0.00025861,2]
[385900744,1758119434677,-633.0,0.00025861,2]
[385900745,1758119434687,-500.0,0.00025861,2]
[385900746,1758119434699,-500.0,0.00025861,2]
[385900747,1758119434710,-150.0,0.00025861,2]
[385900748,1758119434720,-150.0,0.00025861,2]
[385900749,1758119434731,-500.0,0.00025861,2]
[385900750,1758119434741,-3300.0,0.000259,9]
[385900751,1758119434751,-718.85642411,0.00025923,2]
[385900752,1758119434762,-205.94225995,0.0002595,2]
[385900753,1758119434772,-303.97,0.00025973,2]
[385900754,1758119434782,-1000.0,0.00026,2]
[385900755,1758119434792,-188.07805485,0.00026,2]
[385900756,1758119434802,-20808.54921774,0.00026,7]
[385900757,1758119434813,-168.0,0.0002602,2]
[385900758,1758119434824,-825.02049824,0.00026028,2]
[385900759,1758119434834,-755.18851775,0.00026033,2]
[385900760,1758119434845,-1216.42,0.00026076,2]
[385900761,1758119434855,-150.0,0.00026081,2]
[385900762,1758119434864,-1216.38,0.000261,2]
[385900763,1758119434875,-500.0,0.00026135,2]
[385900764,1758119434886,-482.0,0.00026135,2]
[385900765,1758119434896,-500.0,0.00026135,2]
[385900766,1758119434907,-500.0,0.00026135,2]
[385900767,1758119434918,-150.0,0.00026135,2]
[385900768,1758119434927,-500.0,0.00026135,2]
[385900769,1758119434937,-388.39072443,0.00026135,2]
[385900770,1758119434955,-111.60927557,0.00026135,2]
[385900771,1758119434964,-500.0,0.00026135,2]
[385900772,1758119434975,-250.0,0.00026135,2]
[385900773,1758119434985,-633.0,0.00026135,2]
[385900774,1758119434995,-633.0,0.00026135,2]
[385900775,1758119435006,-200.0,0.00026135,2]
[385900776,1758119435015,-601.10982402,0.00026135,2]
[385900777,1758119435025,-150.0,0.00026135,2]
[385900778,1758119435035,-500.0,0.00026135,2]
[385900779,1758119435046,-150.0,0.00026152,2]
[385900780,1758119435055,-2500.0,0.0002619,2]
[385900781,1758119435066,-4909.31709393,0.00026199,2]
[385900782,1758119435076,-168.38223959,0.00026199,2]
[385900783,1758119435086,-430.22699433,0.000262,2]
[385900784,1758119435095,-1900.0,0.00026215,2]
[385900785,1758119435107,-1216.38,0.0002623,2]
[385900786,1758119435118,-5000.0,0.00026245,2]
[385900787,1758119435128,-2614.3240353,0.00026256,2]
[385900788,1758119435163,-453.27469332,0.00026256,2]
[385900789,1758119435173,-1191.87571176,0.00026256,2]
[385900790,1758119435183,-141.39607621,0.00026273,2]
[385900791,1758119435207,-362.56059187,0.00026273,2]
[385900792,1758119435218,-310.54169113,0.00026273,2]
[385900793,1758119435229,-500.0,0.00026273,2]
[385900794,1758119435238,-500.0,0.00026273,2]
[385900795,1758119435249,-502.0950635,0.00026273,2]
[385900796,1758119435259,-500.9881595,0.00026273,2]
[385900797,1758119435269,-168.38223959,0.00026275,2]
[385900798,1758119435279,-2945.06025441,0.00026275,2]
[385900799,1758119435300,-877.8750098,0.00026275,2]
[385900800,1758119435313,-4505.00723579,0.00026275,2]
[385900801,1758119435323,-163.28,0.00026276,2]
[385900802,1758119435333,-1000.0,0.00026277,2]
[385900803,1758119435343,-163.28,0.00026279,2]
[385900804,1758119435353,-163.28,0.0002628,2]
[385900805,1758119435364,-163.28,0.0002628,2]
[385900806,1758119435374,-386.0,0.0002628,2]
[385900807,1758119435384,-163.28,0.0002628,2]
[385900808,1758119435393,-416.15277274,0.00026285,2]
[385900809,1758119435404,-2071.58508378,0.00026286,2]
[385900877,1758119439361,-2.5456618,0.00025763,5]
[385900881,1758119439386,-950.07001464,0.00025763,5]
[385900883,1758119439398,-307.14781376,0.00025763,5]
[385900985,1758119440364,-2320.318,0.00025763,5]
[385900988,1758119440377,-1347.0126248,0.00025763,5]
[385900991,1758119440388,-1236.69612638,0.00026286,2]
[385901003,1758119440448,-1684.72165304,0.00026286,2]
[385901006,1758119440461,-310.9882068,0.00026286,2]
[385901020,1758119440600,-655.72133057,0.00026286,2]
[385901023,1758119440613,-27887.71249943,0.00026286,2]
[385901025,1758119440622,-10878.0619,0.00026286,2]
[385901027,1758119440631,-400.0,0.00026288,2]
[385901029,1758119440641,-419.26984378,0.00026288,2]
[385901031,1758119440651,-400.0,0.00026288,2]
[385901033,1758119440661,-400.0,0.00026288,2]
[385901035,1758119440670,-406.01149341,0.00026288,2]
[385901037,1758119440680,-400.0,0.00026288,2]
[385901039,1758119440690,-400.0,0.00026288,2]
[385901041,1758119440703,-400.0,0.00026288,2]
[385901043,1758119440715,-13679.0313839,0.00026289,2]
[385901045,1758119440726,-579.17,0.00026289,2]
[385901047,1758119440736,-1051.62,0.00026289,2]
[385901049,1758119440746,-1270.9,0.00026289,2]
[385901051,1758119440756,-400.0,0.00026289,2]
[385901053,1758119440766,-956.32,0.00026289,2]
[385901055,1758119440776,-802.84,0.00026289,2]
[385901057,1758119440786,-701.18,0.00026289,2]
[385901059,1758119440796,-977.85,0.00026289,2]
[385901061,1758119440806,-339.12729088,0.00026289,2]
[385901063,1758119440816,-808.88,0.00026289,2]
[385901065,1758119440826,-400.0,0.00026289,2]
[385901067,1758119440837,-400.0,0.00026289,2]
[385901069,1758119440847,-400.0,0.00026289,2]
[385901071,1758119440857,-400.0,0.00026289,2]
[385901073,1758119440867,-400.0,0.00026289,2]
[385901075,1758119440877,-400.0,0.00026289,2]
[385901077,1758119440887,-549.75,0.00026289,2]
[385901079,1758119440898,-784.91,0.00026289,2]
[385901081,1758119440908,-400.0,0.00026289,2]
[385901083,1758119440918,-400.0,0.00026289,2]
[385901085,1758119440928,-400.0,0.00026289,2]
[385901087,1758119440938,-502.94261479,0.00026289,2]
[385901096,1758119441061,-504.93,0.00026289,2]
[385901098,1758119441071,-416.19361516,0.00026289,2]
[385901100,1758119441081,-1477.66,0.00026289,2]
[385901102,1758119441090,-2294.98,0.00026289,2]
[385901104,1758119441100,-400.0,0.00026289,2]
[385901106,1758119441110,-400.0,0.00026289,2]
[385901109,1758119441129,-155.94079964,0.00026289,2]
[385901111,1758119441140,-400.0,0.00026289,2]
[385901113,1758119441152,-480.15,0.00026289,2]
[385901116,1758119441166,-3709.72,0.00026289,2]
[385901118,1758119441176,-300.0,0.00026289,2]
[385901120,1758119441186,-687.05,0.00026289,2]
[385901122,1758119441196,-860.44,0.00026289,2]
[385901124,1758119441209,-644.89,0.00026289,2]
[385901126,1758119441219,-400.0,0.00026289,2]
[385901128,1758119441229,-923.31,0.00026289,2]
[385901130,1758119441239,-569.51,0.00026289,2]
[385901132,1758119441248,-400.0,0.00026289,2]
[385901134,1758119441260,-438.26910417,0.00026289,2]
[385901136,1758119441270,-639.97,0.00026289,2]
[385901138,1758119441280,-400.0,0.00026289,2]
[385901140,1758119441291,-400.0,0.00026289,2]
[385901142,1758119441301,-400.0,0.00026289,2]
[385901144,1758119441311,-401.85954832,0.00026289,2]
[385901146,1758119441321,-400.0,0.00026289,2]
[385901148,1758119441331,-479.59,0.00026289,2]
[385901150,1758119441341,-400.0,0.00026289,2]
[385901151,1758119441351,-400.0,0.00026289,2]
[385901152,1758119441362,-430.79,0.00026289,2]
[385901153,1758119441372,-1880.75712086,0.00026289,2]
[385901154,1758119441386,-11798.27426304,0.00026289,2]
[385901155,1758119441396,-1833.69993962,0.0002629,2]
[385901156,1758119441407,-425.84064142,0.0002629,2]
[385901282,1758119443705,-175.36239511,0.000262,2]
[385901283,1758119443717,-400.0,0.00026288,2]
[385901284,1758119443727,-1248.47,0.00026289,2]
[385901285,1758119443738,-400.0,0.00026289,2]
[385901286,1758119443749,-18.09855331,0.0002629,2]
[385901287,1758119443761,-1200.0,0.0002629,2]
[385901288,1758119443814,-316.47033406,0.0002629,2]
[385901289,1758119443826,-449.0,0.0002629,2]
[385901290,1758119443995,-466.4,0.00025699,2]
[385901291,1758119444006,-64152.04745119,0.0002629,2]
[385901292,1758119444016,-50230.49363426,0.0002629,2]
[385901293,1758119444028,-870.60764668,0.0002629,2]
[385901294,1758119444041,-702.182758,0.0002629,2]
[385901295,1758119444200,-892.57,0.00026289,2]
[385901296,1758119444212,-722.55814222,0.00026289,2]
[385901297,1758119444297,-52.62185778,0.00026289,2]
[385901298,1758119444308,-556.01,0.00026289,2]
[385901299,1758119444319,-1891.16818843,0.0002629,2]
[385901300,1758119444345,-259.32916006,0.0002629,2]
[385901309,1758119446379,-862.0,0.00026288,2]
[385901310,1758119446390,-752.2,0.00026289,2]
[385901311,1758119446400,-702.413,0.0002629,2]
[385901312,1758119446413,-21065.99189781,0.0002629,2]
[385901313,1758119446425,-18481.27525697,0.0002629,2]
[385901314,1758119446709,-338.59281649,0.0002629,2]
[385901315,1758119446722,-1119.32500001,0.0002629,2]
[385901316,1758119446768,-448.41803861,0.0002629,2]
[385901317,1758119446781,-4093.82299998,0.0002629,2]
[385901318,1758119446794,-22907.6620577,0.0002629,2]
[385901319,1758119446805,-23536.7207807,0.0002629,2]
[385901326,1758120265525,153.93,0.00012349,2]
[385901327,1758120265911,153.93,0.00012999,2]
[385901328,1758120265963,153.93,0.00013649,2]
[385901329,1758120266186,153.93,0.00014299,2]
[385901331,1758120266393,153.93,0.00014949,2]
[385901332,1758120266596,153.93,0.00015599,2]
[385901333,1758120266815,153.93,0.00016249,2]
[385901334,1758120267031,153.93,0.00016899,2]
[385901335,1758120267253,153.93,0.00017549,2]
[385901336,1758120267490,153.93,0.00018199,2]
[385901337,1758120267748,153.93,0.00018849,2]
[385901353,1758120631612,-153.93,0.00019499,2]
[385901354,1758120631621,-153.93,0.00020149,2]
[385901355,1758120631631,-153.93,0.00020799,2]
[385901356,1758120631640,-153.93,0.00021449,2]
[385901357,1758120631649,-153.93,0.00022099,2]
[385901358,1758120631659,-338.77358662,0.00022099,2]
[385901359,1758120631686,-507.17557593,0.00022099,2]
[385901360,1758120631696,-352.0,0.000222,5]
[385901361,1758120631705,-153.93,0.00022749,2]
[385901362,1758120631714,-120.96837534,0.00022959,2]
[385901363,1758120631750,-379.03162466,0.00022959,2]
[385901364,1758120631760,-1425.0,0.00023386,2]
[385901365,1758120631770,-153.93,0.00023399,2]
[385901366,1758120631779,-1425.0,0.00023488,2]
[385901367,1758120631789,-1425.0,0.00023626,2]
[385901368,1758120631799,-150.0,0.00023647,2]
[385901369,1758120631808,-1425.0,0.00023717,2]
[385901370,1758120631818,-1200.0,0.00023951,2]
[385901371,1758120631827,-1425.0,0.00023952,2]
[385901372,1758120631836,-300.0,0.00023996,2]
[385901373,1758120631846,-300.0,0.00023996,2]
[385901374,1758120631855,-1425.0,0.00023997,2]
[385901375,1758120631865,-153.93,0.00024049,2]
[385901376,1758120631874,-1425.0,0.00024113,2]
[385901377,1758120631884,-254.0,0.00024174,2]
[385901378,1758120631894,-5000.0,0.00024182,2]
[385901379,1758120631904,-200.0,0.00024196,2]
[385901380,1758120631913,-10291.99,0.00024197,2]
[385901381,1758120631922,-445.05,0.00024215,2]
[385901382,1758120631932,-242.38,0.00024218,2]
[385901383,1758120631942,-322.3,0.00024226,2]
[385901384,1758120631952,-946.46,0.00024233,2]
[385901385,1758120631961,-727.88,0.00024241,2]
[385901386,1758120631971,-1600.0,0.00024241,2]
[385901387,1758120631980,-150.0,0.00024303,4]
[385901388,1758120631990,-1425.0,0.00024426,2]
[385901389,1758120632003,-226.0,0.0002458,7]
[385901390,1758120632012,-177.61,0.00024658,2]
[385901391,1758120632022,-153.93,0.00024699,2]
[385901392,1758120632031,-226.0,0.00024703,2]
[385901393,1758120632041,-177.31,0.00024713,2]
[385901394,1758120632050,-254.0,0.00024734,2]
[385901395,1758120632060,-200.0,0.00024839,2]
[385901396,1758120632071,-150.0,0.00024839,2]
[385901397,1758120632080,-1425.0,0.00024871,2]
[385901398,1758120632090,-151.0,0.00024885,2]
[385901399,1758120632100,-151.0,0.00024885,2]
[385901400,1758120632110,-151.0,0.00024885,2]
[385901401,1758120632119,-151.0,0.00024885,2]
[385901402,1758120632129,-151.0,0.00024885,2]
[385901403,1758120632139,-151.0,0.00024885,2]
[385901404,1758120632148,-151.0,0.00024885,2]
[385901405,1758120632158,-151.0,0.00024885,2]
[385901406,1758120632169,-273.77374642,0.00024885,2]
[385901407,1758120632179,-151.0,0.00024885,2]
[385901409,1758120632189,-151.0,0.00024885,2]
[385901411,1758120632198,-151.0,0.00024885,2]
[385901412,1758120632208,-600.0,0.00024885,2]
[385901415,1758120632218,-321.04118707,0.00024885,2]
[385901417,1758120632227,-151.0,0.00024885,2]
[385901418,1758120632237,-151.0,0.00024885,2]
[385901419,1758120632246,-151.0,0.00024885,2]
[385901420,1758120632255,-151.0,0.00024885,2]
[385901421,1758120632264,-151.0,0.00024885,2]
[385901423,1758120632274,-151.0,0.00024885,2]
[385901424,1758120632287,-151.0,0.00024885,2]
[385901425,1758120632296,-18776.8105999,0.000249,2]
[385901426,1758120632305,-150.0,0.00024902,7]
[385901427,1758120632315,-312.3,0.00024912,2]
[385901428,1758120632325,-190.0,0.00024944,2]
[385901429,1758120632335,-150.0,0.0002496,4]
[385901430,1758120632345,-1032.17,0.00024963,2]
[385901431,1758120632355,-462.05873684,0.00024983,2]
[385901432,1758120632364,-248.71531821,0.00025087,2]
[385901433,1758120632375,-161.28066317,0.00025087,2]
[385901434,1758120632385,-322.6107,0.00025087,2]
[385901435,1758120632396,-168.0,0.00025103,2]
[385901436,1758120632408,-404.59,0.00025214,2]
[385901437,1758120632418,-1167.61,0.00025306,2]
[385901438,1758120632427,-322.3,0.00025438,2]
[385901439,1758120632437,-163.18,0.00025463,2]
[385901440,1758120632447,-343.0,0.00025594,2]
[385901441,1758120632456,-343.0,0.00025596,7]
[385901442,1758120632466,-168.0,0.00025599,7]
[385901443,1758120632475,-1000.0,0.000256,9]
[385901444,1758120632485,-150.0,0.00025617,4]
[385901445,1758120632494,-343.0,0.00025684,7]
[385901446,1758120632504,-2100.0,0.000257,9]
[385901447,1758120632514,-975.46856615,0.00025706,2]
[385901448,1758120632524,-254.0,0.00025753,2]
[385901449,1758120632533,-343.0,0.00025772,2]
[385901450,1758120632543,-343.0,0.000258,2]
[385901451,1758120632553,-3100.0,0.000258,9]
[385901452,1758120632563,-312.3,0.00025846,2]
[385901453,1758120632572,-695.1,0.0002589,2]
[385901454,1758120632582,-500.0,0.00025899,2]
[385901455,1758120632591,-388.0,0.000259,2]
[385901456,1758120632601,-4200.0,0.000259,9]
[385901457,1758120632611,-1425.0,0.0002596,2]
[385901458,1758120632620,-725.93,0.00025973,2]
[385901459,1758120632630,-695.07,0.0002599,2]
[385901460,1758120632640,-6590.19775615,0.00026,2]
[385901461,1758120632650,-11490.28987968,0.00026,2]
[385901462,1758120632660,-1024.96,0.00026,2]
[385901463,1758120632669,-2000.0,0.00026,2]
[385901464,1758120632679,-695.07,0.00026,2]
[385901465,1758120632688,-1425.0,0.00026004,2]
[385901466,1758120632698,-9496.08531,0.0002603,2]
[385901467,1758120632711,-10319.10393337,0.0002603,2]
[385901468,1758120632721,-387.20429496,0.00026079,2]
[385901469,1758120632731,-2500.0,0.0002608,2]
[385901470,1758120632740,-472.26,0.00026082,2]
[385901471,1758120632751,-1385.43,0.00026082,2]
[385901472,1758120632761,-5645.72062693,0.00026089,2]
[385901473,1758120632770,-344.0,0.00026092,2]
[385901474,1758120632781,-1680.0,0.00026094,2]
[385901475,1758120632791,-200.0,0.000261,7]
[385901476,1758120632800,-1077.5107116,0.000261,2]
[385901477,1758120632810,-695.07,0.000261,2]
[385901478,1758120632820,-472.26,0.0002611,2]
[385901479,1758120632830,-500.0,0.00026135,2]
[385901480,1758120632839,-500.0,0.00026135,2]
[385901481,1758120632848,-150.0,0.00026135,2]
[385901482,1758120632858,-500.0,0.00026135,2]
[385901483,1758120632867,-500.0,0.00026135,2]
[385901484,1758120632877,-260.23622963,0.00026135,2]
[385901485,1758120632887,-500.0,0.00026135,2]
[385901486,1758120632896,-500.0,0.00026135,2]
[385901487,1758120632906,-500.0,0.00026135,2]
[385901488,1758120632916,-150.0,0.00026135,2]
[385901489,1758120632925,-150.0,0.00026135,2]
[385901490,1758120632935,-150.0,0.00026135,2]
[385901491,1758120632945,-500.0,0.00026135,2]